Cogmind - Beta 14 X2 @@@ ROGUE MODE // 2024.08.02 @ 14:00:38 Player: H3-RMN Result: Destroyed by D-53 Grenadier with Mini Grenade Launcher Performance ------------- Evolutions (0) 0 Regions Visited (2) 400 Robots Destroyed (22) 110 Value Destroyed (541) 541 Prototype IDs (4) 80 Alien Tech Used (0) 0 Bonus (0) 0 TOTAL SCORE: 1131 Bonus ------- None Cogmind --------- Core Integrity 0/250 Matter 300/300 Energy 100/100 System Corruption 0% Temperature Cool (0) Movement Core (50) Location -10/Mines Parts ------- > --- POWER (1) -------- (None) > --- PROPULSION (2) --- (None) > --- UTILITY (2) ------ (None) > --- WEAPON (2) ------- (None) > --- INVENTORY (5) ---- Structural Scanner Experimental Sensor Array Hardened Light Armor Plating Datajack Peak State ------------ > --- POWER ------------ Light Nuclear Core > --- PROPULSION ------- Light Treads Wheel > --- UTILITY ---------- Huge Storage Unit Improved Targeting Computer > --- WEAPON ----------- EM Pulse Gun Medium Laser > --- INVENTORY -------- Light Ion Engine Light Treads Medium Storage Unit Structural Scanner Experimental Sensor Array Transport Network Coupler Medium Armor Plating Hardened Light Armor Plating Hardened Light Armor Plating Hardened Light Armor Plating Hacking Suite Datajack [Rating: 12] Favorites ----------- Power Light Nuclear Core Engine Light Ion Engine Power Core Light Nuclear Core Propulsion Light Treads Treads Light Treads Wheel Wheel Utility Improved Targeting Computer Storage Huge Storage Unit Processor Improved Targeting Computer Protection Hardened Light Armor Plating Weapon Medium Laser Energy Gun Medium Laser Ballistic Gun Assault Rifle Build | -11 -10 -10 ------- Run | Yrd Mat Min Slots Evolved . | . . . Power . | . . . Propulsion . | . . . Utility . | . . . Weapon . | . . . Parts Attached 20 | 6 14 . Power 3 | 1 2 . Engine 2 | 1 1 . Core 1 | . 1 . Reactor . | . . . Propulsion 6 | 2 4 . Treads 2 | 1 1 . Leg . | . . . Wheel 4 | 1 3 . Hover . | . . . Flight . | . . . Utility 7 | 1 6 . Device . | . . . Storage 4 | 1 3 . Processor 1 | . 1 . Hackware . | . . . Protection 2 | . 2 . Artifact . | . . . Weapon 4 | 2 2 . Energy Gun 2 | 1 1 . Energy Cannon . | . . . Ballistic Gun 2 | 1 1 . Ballistic Cannon . | . . . Launcher . | . . . Special Weapon . | . . . Impact Weapon . | . . . Slashing Weapon . | . . . Piercing Weapon . | . . . Special Melee Weapon . | . . . Unidentified Prototypes . | . . . Parts Lost 7 | . 3 4 Power 2 | . 1 1 Propulsion 2 | . 1 1 Utility . | . . . Weapon 3 | . 1 2 Highest Loss Streak 4 | . 2 4 To Critical Strikes . | . . . Average Slot Usage (%) 96 | . 95 99 Engine 4 | . 6 . Core 6 | . 3 14 Treads 14 | . 15 14 Wheel 13 | . 12 14 Storage 14 | . 14 14 Processor 10 | . 9 14 Protection 3 | . 4 . Energy Gun 24 | . 23 27 Ballistic Gun 3 | . 4 . Naked Turns 1 | . . 1 Heaviest Build 89 | 11 89 89 Greatest Support 40 | 16 40 10 Greatest Overweight (x) 8 | . 8 8 Average Overweight (x) 3 | . 2 8 Largest Inventory Capacity 25 | 8 25 25 Average Capacity 15 | 7 12 24 Most Carried 12 | 7 11 12 Average Carried 9 | 4 9 11 Final Capacity 25 | 8 25 5 Final Carried 11 | 7 11 4 Class Distribution -------------------- 100% | Mutant Dominant Class ---------------- Mutant | -10/Materials Mutant | -10/Mines Resources | -11 -10 -10 ----------- Run | Yrd Mat Min Matter Collected 472 | 264 208 . Remotely . | . . . Salvage Created 977 | 73 904 . Parts 51 | 7 44 . Haulers Intercepted 1 | . 1 . Recyclers Shooed 3 | . 3 . Parts Field Recycled . | . . . Retrieved Matter . | . . . Parts Self-Destructed . | . . . Prevented . | . . . Kills | -11 -10 -10 ------- Run | Yrd Mat Min Combat Hostiles Destroyed 13 | . 13 . Guns 12 | . 12 . Classes Destroyed 6 | 2 4 . Builder 1 | . 1 . Tunneler 1 | 1 . . Hauler 1 | . 1 . Recycler 5 | 1 4 . Operator 1 | . 1 . Grunt 13 | . 13 . Best Kill Streak 4 | 2 4 . Combat Bots Only 4 | . 4 . Max Kills in Single Turn 1 | 1 1 . Gunslinging . | . . . Exploded . | . . . Melee . | . . . Uniques/NPCs Destroyed . | . . . Combat | -11 -10 -10 -------- Run | Yrd Mat Min Hostile Shots Fired 89 | . 82 7 Missed 19 | . 18 1 Damage Taken 1172 | . 910 262 Core 262 | . 173 89 Absorbed by Shields . | . . . Core Remaining (%) 100 | 100 . . Volleys Fired 92 | 4 88 . Largest 2 | 2 2 . Hottest 90 | 70 90 . Shots Fired 141 | 8 133 . Gun 141 | 8 133 . Cannon . | . . . Launcher . | . . . Special . | . . . Kinetic 30 | 4 26 . Thermal 92 | 4 88 . Explosive . | . . . Electromagnetic 19 | . 19 . Robot Hit Streak 20 | 1 20 . Robot Miss Streak 5 | 2 5 . Penetration Max . | . . . Secondary Targets 1 | . 1 . Max Gunslinging Chain 1 | . 1 . Shots Hit Robots 102 | 3 99 . Core Hits 40 | 3 37 . Critical Kills . | . . . Critical Parts Destroyed . | . . . Critical Strikes 7 | 1 6 . Burn 7 | 1 6 . Melee Attacks . | . . . Impact . | . . . Slashing . | . . . Piercing . | . . . Sneak Attacks . | . . . Combat Hostiles . | . . . Follow-up Attacks . | . . . Damage Inflicted 1362 | 32 1330 . Guns 1362 | 32 1330 . Cannons . | . . . Explosions . | . . . Melee . | . . . Ramming . | . . . Kinetic 248 | 7 241 . Thermal 882 | 25 857 . Explosive . | . . . Electromagnetic 232 | . 232 . Impact . | . . . Slashing . | . . . Piercing . | . . . Highest Corruption . | . . . Average Corruption . | . . . Corruption Purged . | . . . Corruption Blocked . | . . . Overload Shots . | . . . Overflow Damage . | . . . Projectiles . | . . . Explosions . | . . . Melee . | . . . Knockbacks . | . . . Impact . | . . . Kinetic . | . . . Secondary . | . . . Self-Inflicted Damage . | . . . Shots . | . . . Rammed . | . . . Targets Rammed . | . . . Kicked . | . . . Crushed . | . . . Highest Temperature 437 | 50 437 . Average Temperature 137 | 24 143 . Received Heat Transfer 525 | . 525 . Effects 2 | . 2 . Shutdowns 1 | . 1 . Interference 1 | . 1 . Siege Activations . | . . . Robots Corrupted . | . . . Combat Hostiles . | . . . Parts Fried 1 | . 1 . Impact Corruptions . | . . . Robots Melted 1 | . 1 . Combat Hostiles 1 | . 1 . Parts Melted 2 | . 2 . Heat Transferred 3071 | 148 2923 . Parts Sabotaged . | . . . Parts Stolen . | . . . Parts Stripped . | . . . Power Chain Reactions . | . . . Alert | -11 -10 -10 ------- Run | Yrd Mat Min Peak Influence 251 | 10 251 40 Initial 40 | . 6 40 Average 84 | 4 110 36 Maximum Alert Level 1 | . 1 . Low Security (%) 87 | 100 81 100 Level 1 12 | . 18 . Level 2 . | . . . Level 3 . | . . . Level 4 . | . . . Level 5 . | . . . High Security . | . . . Max Security . | . . . Squads Dispatched 3 | . 3 . Investigation 1 | . 1 . Extermination . | . . . Reinforcement 2 | . 2 . Assault . | . . . Garrison . | . . . Intercept . | . . . Searches Triggered . | . . . Construction Impeded . | . . . Haulers Reinforced . | . . . Active Scanning Responses . | . . . Cargo Convoy Interrupts . | . . . Stealth | -11 -10 -10 --------- Run | Yrd Mat Min Distress Signals 1 | . 1 . Communications Jammed . | . . . Distress Signals . | . . . Times Spotted 29 | . 24 5 Peak Tracking Total 6 | . 6 5 Tactical Retreats 2 | . 2 . Traps | -11 -10 -10 ------- Run | Yrd Mat Min Traps Triggered 3 | . 3 . Indirectly . | . . . Trap Hack Attempts . | . . . Triggered . | . . . Disarmed . | . . . Reprogrammed . | . . . Reused . | . . . Traps Extracted . | . . . Installed . | . . . Triggered . | . . . Machines | -11 -10 -10 ---------- Run | Yrd Mat Min Machines Disabled . | . . . Max in Single Turn . | . . . Machines Repaired . | . . . Machines Dismantled . | . . . Machines Sabotaged . | . . . Overloaded Fab Kills . | . . . Hacking | -11 -10 -10 --------- Run | Yrd Mat Min Machines Accessed 6 | . 6 . Terminals 6 | . 6 . Fabricators . | . . . Repair Stations . | . . . Recycling Units . | . . . Scanalyzers . | . . . Garrison Access . | . . . Total Hacks 17 | . 17 . Successful 7 | . 7 . Failed 10 | . 10 . Catastrophic 1 | . 1 . Database Lockouts . | . . . Manual 11 | . 11 . Terminals 17 | . 17 . Fabricators . | . . . Repair Stations . | . . . Recycling Units . | . . . Scanalyzers . | . . . Garrison Access . | . . . Terminal Hacks 6 | . 6 . Part Schematic 1 | . 1 . Robot Analysis 1 | . 1 . Prototype ID Bank 2 | . 2 . Terminal Index 1 | . 1 . Locate Traps 1 | . 1 . Fabricator Hacks . | . . . Repair Station Hacks . | . . . Recycling Unit Hacks . | . . . Scanalyzer . | . . . Garrison Access Hacks . | . . . Unauthorized Hacks 1 | . 1 . Terminals 1 | . 1 . Track 1 | . 1 . Fabricators . | . . . Repair Stations . | . . . Recycling Units . | . . . Scanalyzers . | . . . Garrison Access . | . . . Data Cores Recovered . | . . . Used . | . . . Hacking Detections 5 | . 5 . Full Trace Events . | . . . Feedback Events . | . . . Feedback Blocked . | . . . Robot Schematics Acquired . | . . . Robots Built . | . . . Authchips . | . . . Time . | . . . Total Robot Build Rating . | . . . Part Schematics Acquired 1 | . 1 . Parts Built . | . . . Authchips . | . . . Time . | . . . Total Part Build Rating . | . . . Parts Repaired . | . . . Time . | . . . Parts Recycled . | . . . Recycled Matter . | . . . Retrieved Matter . | . . . Retrieved Components . | . . . Parts Scanalyzed . | . . . Part Schematics Acquired . | . . . Parts Damaged . | . . . Bothacking | -11 -10 -10 ------------ Run | Yrd Mat Min Used RIF Installer . | . . . Robots Hacked . | . . . Non-combat . | . . . Combat . | . . . Robot Hacks Applied . | . . . Relay Couplers Released . | . . . Fabnet Peak Effective % . | . . . Robots Rewired . | . . . Allies Hacked . | . . . Hacks Repelled . | . . . Allies | -11 -10 -10 -------- Run | Yrd Mat Min Total Allies . | . . . Largest Group . | . . . Highest-Rated Group . | . . . Highest-Rated Ally . | . . . Total Orders . | . . . Ally Attacks . | . . . Total Damage . | . . . Kills . | . . . Allies Corrupted . | . . . Allies Melted . | . . . Intel | -11 -10 -10 ------- Run | Yrd Mat Min Robot Analysis Total 1 | . 1 . Derelict Logs Recovered 1 | . . 1 Drone Launches . | . . . Drone Recoveries . | . . . Exploration | -11 -10 -10 ------------- Run | Yrd Mat Min Turns Passed 1496 | 75 988 433 Spaces Moved 744 | 48 482 214 Core 1 | 1 . . Treads 24 | . 24 . Legs . | . . . Wheels 719 | 47 458 214 Hover . | . . . Flight . | . . . Fastest Speed 50 | 50 80 200 Average Speed 141 | 98 119 200 Slowest Speed 200 | 100 200 200 Overloaded Moves . | . . . Propulsion Burnouts . | . . . Robots Hopped . | . . . Cave-ins Triggered . | . . . Exploration Rate (%) 39 | 3 85 30 Regions Visited 2 Branch Regions 1 Pre-discovered Areas . | . . . Known Exits Taken . | . . . Unknown Exits Taken 2 | 1 1 . Scrap Searched . | . . . Spaces Dug . | . . . Terrain Destroyed . | . . . Melee . | . . . Projectile . | . . . AOE . | . . . Terrain Rammed . | . . . Walls Destroyed . | . . . Machines Disabled . | . . . Actions | -11 -10 -10 --------- Run | Yrd Mat Min Total 1048 | 65 764 219 Wait 158 | . 155 3 Move 742 | 47 481 214 Hop . | . . . Pick Up 22 | 8 13 1 Fast Attach 8 | 5 3 . Attach 2 | 1 1 . Detach . | . . . Swap 10 | . 10 . Drop 14 | . 13 1 Fire 92 | 4 88 . Melee . | . . . Ram . | . . . Kick . | . . . Crush . | . . . Escape Stasis . | . . . Rewire . | . . . Trap . | . . . Miscellaneous . | . . . Route ------- -11/Scrapyard -10/Materials (discovered 4 exits: [*Mat x2] / [*Min x2]) -10/Mines (discovered 2 exits: [*Mat] / [*Exi]) History --------- Turn | Location | Event 15 | -11/Scrapyard | Discovered new exit (range 15) 76 | -11/Scrapyard | Entered Materials 315 | -10/Materials | Build established: Mutant 519 | -10/Materials | Discovered new exit (range 14) 716 | -10/Materials | Discovered new exit (range 3) 753 | -10/Materials | Core integrity fell below 50% 812 | -10/Materials | Discovered new exit (range 15) 913 | -10/Materials | Discovered new exit (range 13) 1064 | -10/Materials | Entered Mines 1104 | -10/Mines | Discovered new exit (range 12) 1128 | -10/Mines | Found a damaged Exp. Sensor Array with a note attached 1132 | -10/Mines | Found Prototype Device 1143 | -10/Mines | Learned Materials security intel 1245 | -10/Mines | Deemed a non-threat by the Exiles lab entrance 1384 | -10/Mines | Discovered new exit (range 8) 1465 | -10/Mines | Assembled infested the area 1493 | -10/Mines | Core integrity fell below 20% 1496 | -10/Mines | Released all parts (3) 1497 | -10/Mines | Destroyed by D-53 Grenadier with Mini Grenade Launcher Last Messages --------------- 01231_ U-05 Engineer lays Concrete. 01234_ K-01 Serf collects debris. 01245_ "No threat detected, you may enter." 01250_ U-05 Engineer lays Concrete. 01251_ U-05 Engineer builds a Wall. 01264_ K-01 Serf collects debris. 01384_ EXIT=FOUND 01465_ ALERT: Infestation in the mines, dispatching Demolisher response squad. 01488_ C-30 ARC bursts open, deploying its payload. 01488_ D-53 Grenadier unfolds itself. 01489_ EM Pulse Gun destroyed. 01493_ Lgt. Treads destroyed. 01495_ Med. Laser destroyed. 01496_ Lgt. Nuclear Core destroyed. 01496_ Released Imp. Targeting Computer. 01496_ Released Wheel. 01496_ Released Huge Storage Unit. 01496_ Dropped Hrd. Light Armor Plating. Map ----- +----------------------------------------------------+ | ??????????????????????????????????????????????# #? | | ??????????????????????????????????????????????# #? | | ??????????????????????????????????????????????# #? | | ??????????????????????????????????????????????# #? | | ??????????????????????????????????????????????# #? | | ???????????????????????????????????? ?????????# #? | | ???????????????????????????????????? #???????# #? | | ??#####?????????????????????????##?? #???????# ## | | ?## ##????????????????????????# ?? #???????# # | | ## #????????????????????????# ?? ???????## # | | # #????????????????????????# ## ?????????# # | | #???????????????????????## ?????????# # | | ##???????????????????????# ?????????# # | | # ## #????????????????????###?? ??????????# # | | ##??# #####???????????????? #??? ??????????# # | | ????# ##########???????# #???# #???????#### # | | ????## ## ## ##??????# #???# #??###### # # | | ?????# ## "% ######## #???# #### | | ?????# ####### " d ## ##### ## | | ?????# #?????## d ## ### | | ?????# #??????###### ### | | ?????# #???????????## ## ## | | ###??# #????????????## #### ### # | | #??# #????????????# #??# #?# # | | #??# #????????????# !!= #??## #?# ## | | #### #????????????## !@!! ##???# #?# ## | | #?????????????# !*! #???## ##?# ## | | ######????????????# ##????######??# | | ###?????????????????## ????????????#### | | ?????????????????????#### #?????????????## | | ?????????????????????????########??????????????### | | ?????????????????????????????????????????????????? | | ?????????????????????????????????????????????????? | | | | | | | | | | | | | | | | | | | | | | | | | | | | | | | | | | | +----------------------------------------------------+ Best States ------------- Heat Dissipation 25 Energy Generation 14 Energy Capacity 160 Matter Stores 300 Matter Capacity 300 Sight Range 16 Terrain Scan Density 10 Armor Coverage 225 Evasion (%) 44 Targeting Accuracy 6 Recoil Reduction 2 Item Schematics ----------------- Hcp. Storage Unit | -10/Materials | Hacked Robot Schematics ------------------ None Fabricated ------------ Nothing Alien Tech Used ----------------- None Achievements -------------- None Challenges ------------ None Game ------ Seed MetaFlakVibroblade Manual? 0 Play Time 00:11:59 Cumulative 457.2 hours Start 2024.08.02 @ 13:49:43 End 2024.08.02 @ 14:00:38 Sessions 1 Manual Loads 0 Difficulty Rogue Special Mode None Game No. 175 Rogue 172 Adventurer 3 Explorer 0 Win Type - Total 7 Types 4/1/0/1/0/1/0/0/0 Lore% 53 Gallery% 82 Achievement% 86 Wizard Run 0 Options --------- Layout 1 ASCII 0 Keyboard 0 Movement Numpad Keybinds 0 Fullscreen 2 Font 24/Smallcaps Map View 50x35 Zoom Use 0% Tactical HUD 1 Map Filters NONE Filters NONE Steam 1 RUN: d84fef3b-48c2-4399-adf7-63494d8ada1e